bitfinex/quotes_ETHUSD_20240811
["timestamp","ask_amount","ask_price","bid_price","bid_amount"]
[1723419502119,17.968,2566.6,2566.3,6.23464]
[1723419502347,17.968,2566.6,2566.3,3.11732]
[1723419502589,17.968,2566.5,2566.3,3.11726]
[1723419503081,17.968,2566.5,2566.3,6.23451]
[1723419503590,17.968,2566.5,2566.3,3.11725]
[1723419503882,17.968,2566.5,2566.4,6.7844]
[1723419504448,17.968,2566.5,2566.4,3.6672]
[1723419505847,17.968,2566.5,2566.4,0.55]
[1723419506072,17.968,2566.5,2566.4,3.6672]
[1723419506678,18.08423903,2566.5,2566.4,6.7844]
[1723419508900,18.08423903,2566.5,2566.4,7.36492343]
[1723419510417,18.08423903,2566.5,2566.4,4.24772343]
[1723419510619,18.08423903,2566.5,2566.4,0.55]
[1723419510815,18.08423903,2566.5,2566.2,6.23471]
[1723419510986,18.08423903,2566.5,2566.3,0.55]
[1723419511181,2.3816,2566.4,2566.3,0.55]
[1723419511381,2.49781208,2566.4,2566.3,0.55]
[1723419511810,22.51239329,2566.4,2565.8,3.11783]
[1723419511996,21.08539,2566.3,2565.8,3.11783]
[1723419512193,2.46454559,2566.2,2565.8,3.11783]
[1723419512426,4.89887492,2566.2,2565.6,3.11807]
[1723419512593,4.89887492,2566.2,2565.7,3.11804]
[1723419513107,4.89887492,2566.2,2565.6,3.11807]
[1723419513108,8.01638492,2566.2,2565.6,3.11807]
[1723419513415,4.89887492,2566.2,2565.7,6.23608]
[1723419513742,4.89887492,2566.2,2565.7,3.11804]
[1723419514780,8.01642492,2566.2,2565.5,3.1182]
[1723419515006,5.16416121,2566.1,2565.6,6.11815]
[1723419515281,5.16416121,2566.1,2565.4,3.1184]
[1723419515282,2.4925,2565.9,2565.4,3.1184]
[1723419515482,2.4925,2565.9,2565.5,0.55]
[1723419515483,4.92682933,2565.9,2565.5,0.55]
[1723419515813,0.11569807,2565.8,2565.5,0.55]
[1723419516021,17.968,2565.7,2565.5,0.55]
[1723419516220,0.11565207,2565.6,2565.5,0.55]
[1723419516379,2.60525207,2565.6,2564.6,3.73347511]
[1723419516719,2.60525207,2565.6,2565.1,3.11868]
[1723419516907,2.60525207,2565.6,2565.2,3.11859]
[1723419517115,2.60525207,2565.6,2565.5,3.1183]
[1723419517116,0.11565207,2565.6,2565.5,3.1183]
[1723419517421,20.4576,2565.9,2565.6,3.11817]
[1723419517422,2.4896,2565.9,2565.6,3.11817]
[1723419517653,0.11541021,2565.8,2565.4,6.23672]
[1723419517864,0.11541021,2565.8,2565.5,3.11829]
[1723419518764,0.11541021,2565.8,2565.6,3.11814]
[1723419518919,0.11541021,2565.8,2565.7,3.66805]
[1723419519123,0.11541021,2565.8,2565.7,0.55]
[1723419519466,0.11533868,2565.8,2565.7,3.66795]
[1723419519628,17.968,2566.0,2565.8,3.11792]
[1723419519954,0.11536168,2565.9,2565.7,3.66805]
[1723419520355,0.11536168,2565.9,2565.8,3.11793]
[1723419520858,0.11530152,2565.9,2565.8,4.346532]
[1723419521161,5.36731,2566.4,2565.8,4.346532]
[1723419521468,0.11535128,2565.9,2565.8,3.66793]
[1723419521638,2.2501,2566.4,2565.8,3.66793]
[1723419521839,3.23280328,2566.3,2565.9,0.55]
[1723419522040,4.09280961,2566.3,2565.9,0.55]
[1723419523463,3.11757,2566.1,2565.9,0.55]
[1723419523638,0.11537429,2566.0,2565.7,0.55]
[1723419524046,2.2501,2566.2,2565.7,0.55]
[1723419524047,5.36756,2566.2,2565.7,0.55]
[1723419524258,0.11539729,2566.1,2565.7,3.66794]
[1723419524864,0.11539729,2566.1,2565.8,3.11792]
[1723419525091,0.11539729,2566.1,2565.9,0.55]
[1723419525685,0.11539729,2566.1,2565.8,0.55]
[1723419525861,0.11539729,2566.1,2565.8,3.11782]
[1723419526062,0.11539729,2566.1,2565.9,3.66773]
[1723419526290,17.968,2566.0,2565.9,0.55]
[1723419526603,18.08337429,2566.0,2565.8,0.55]
[1723419526771,18.08337429,2566.0,2565.7,3.55]
[1723419527094,18.08337429,2566.0,2565.7,4.51681]
[1723419527897,18.08337429,2566.0,2565.8,3.11793]
[1723419528088,18.08337429,2566.0,2565.4,3.11835]
[1723419528399,2.2501,2565.9,2565.2,5.97858]
[1723419528714,18.08341171,2565.8,2565.5,3.11825]
[1723419529302,18.08341171,2565.8,2565.5,3.11822]
[1723419529609,18.08341171,2565.8,2565.6,3.11814]
[1723419529900,18.08341171,2565.8,2565.7,3.66805]
[1723419532292,18.08341171,2565.8,2565.7,0.55]
[1723419533315,18.08341171,2565.8,2565.7,3.66805]
[1723419534041,18.08341171,2565.8,2565.7,0.55]
[1723419534843,18.08341171,2565.8,2565.7,3.66805]
[1723419537308,18.08341171,2565.8,2565.7,7.464715]
[1723419537700,18.08341171,2565.8,2565.7,12.906915]
[1723419538201,0.11541171,2565.8,2565.7,12.906915]
[1723419538401,17.968,2566.2,2566.1,3.11756]
[1723419538601,17.968,2566.2,2566.1,3.66756]
[1723419540552,17.968,2566.2,2566.1,6.78513]
[1723419541351,17.968,2566.2,2566.1,7.463643]
[1723419542743,17.968,2567.1,2566.7,3.11683]
[1723419542945,17.968,2567.1,2566.7,3.11677]
[1723419543644,2.4012,2567.4,2567.0,3.11646]
[1723419543933,5.51727,2567.4,2566.8,3.11662]
[1723419544140,4.80934712,2567.4,2566.9,0.55]
[1723419544500,4.80934712,2567.4,2566.9,3.11658]
[1723419544700,2.4012,2567.4,2567.1,3.11633]
[1723419545252,2.4012,2567.4,2567.2,3.66622]
[1723419545401,2.4012,2567.4,2567.2,0.55]
[1723419545610,2.4012,2567.4,2567.2,3.66621]
[1723419545938,2.4012,2567.4,2567.2,0.55]
[1723419546606,2.4012,2567.4,2567.1,3.11625]
[1723419546803,2.4012,2568.0,2567.5,3.11582]
[1723419547138,2.4012,2568.0,2567.6,0.55]
[1723419548211,3.11548,2567.9,2567.6,0.55]
[1723419548540,3.667248,2567.8,2567.6,0.55]
[1723419548715,3.11558,2567.8,2567.6,0.55]
[1723419549831,3.11558,2567.8,2567.2,3.11615]
[1723419550038,17.968,2567.7,2567.3,0.55]
[1723419550203,2.395,2567.4,2566.7,3.11681]
[1723419550406,3.11639,2567.1,2566.6,3.11689]
[1723419550659,21.08421,2567.3,2566.6,3.11689]
[1723419550959,17.968,2567.3,2566.9,3.11655]
[1723419551241,21.08412,2567.3,2566.7,3.11676]
[1723419551454,3.11625,2567.2,2566.5,3.11701]
[1723419551625,3.11649,2567.0,2566.5,3.11701]
[1723419551825,18.08471662,2566.9,2566.5,3.11701]
[1723419552059,18.08471662,2566.9,2566.6,3.11695]
[1723419552660,18.08471662,2566.9,2566.7,3.11677]
[1723419552839,18.08471662,2566.9,2566.8,3.11672]
[1723419553152,18.08471662,2566.9,2566.8,3.66672]
[1723419554026,18.08471662,2566.9,2566.8,6.78344]
[1723419554433,18.08471662,2566.9,2566.8,3.66672]
[1723419555021,18.08471662,2566.9,2566.8,0.55]
[1723419555421,18.08471662,2566.9,2566.8,3.66672]
[1723419556827,18.08471662,2566.9,2566.8,7.461789]
[1723419557027,18.08471662,2566.9,2566.8,9.19554]
[1723419558359,20.47721662,2566.9,2566.8,0.55]
[1723419558559,20.47721662,2566.9,2566.6,3.11689]
[1723419559363,20.47721662,2566.9,2566.7,3.11683]
[1723419559660,20.47721662,2566.9,2566.8,3.11672]
[1723419559870,18.08471662,2566.9,2566.8,3.11672]
[1723419560633,18.08471662,2566.9,2566.8,3.66672]
[1723419561459,18.08471662,2566.9,2566.8,0.55]
[1723419561763,20.13243828,2566.9,2566.5,3.117]
[1723419561964,18.08471662,2566.9,2566.6,3.11692]
[1723419562165,18.08471662,2566.9,2566.5,3.117]
[1723419562332,18.08471662,2566.9,2566.4,0.39]
[1723419562536,3.11672,2566.8,2566.4,3.39]
[1723419562754,20.44409428,2566.9,2566.5,3.11697]
[1723419562755,17.968,2566.7,2566.5,3.11697]
[1723419563057,17.968,2566.7,2566.6,3.66696]
[1723419563058,18.08461933,2566.7,2566.6,3.66696]
[1723419568691,18.08461933,2566.7,2566.6,0.55]
[1723419568870,18.08461933,2566.7,2566.4,4.05714]
[1723419569065,18.08461933,2566.7,2566.4,7.17423]
[1723419569272,18.08461933,2566.7,2566.4,4.05709]
[1723419569688,18.08461933,2566.7,2566.4,0.94]
[1723419571183,22.59725426,2566.7,2566.4,0.39]
[1723419572089,25.71417426,2566.7,2566.4,0.39]
[1723419572486,22.59725426,2566.7,2566.4,0.39]
[1723419573500,25.71415426,2566.7,2566.4,0.39]
[1723419573783,20.32877561,2566.6,2566.4,0.39]
[1723419574194,0.11643929,2566.5,2566.3,0.39]
[1723419575854,0.11643929,2566.5,2566.4,5.2522]
[1723419576055,0.11643929,2566.5,2566.4,3.6672]
[1723419576299,5.56849,2566.3,2565.7,6.11799]
[1723419576452,18.08449071,2566.2,2565.9,1.195]
[1723419577256,18.08449071,2566.2,2565.9,4.3128]
[1723419577889,18.08449071,2566.2,2565.9,3.1178]
[1723419578184,18.08449071,2566.2,2565.8,3.11785]
[1723419578356,18.08449071,2566.2,2565.9,0.55]
[1723419578968,18.08449071,2566.2,2566.0,3.11762]
[1723419579169,18.08449071,2566.2,2565.9,0.55]
[1723419579880,17.968,2566.1,2566.0,3.1176]
[1723419580075,18.08386906,2566.1,2566.0,3.6676]
[1723419581711,18.08386906,2566.1,2566.0,0.55]
[1723419584677,18.08386906,2566.1,2566.0,3.66769]
[1723419585101,18.08386906,2566.1,2566.0,4.346231]
[1723419586014,18.08386906,2566.1,2566.0,3.66769]
[1723419586224,18.08386906,2566.1,2566.0,0.55]
[1723419587180,14.30028,2565.9,2565.1,2.3558]
[1723419587498,14.4160977,2565.8,2565.4,3.11834]
[1723419587740,14.4160977,2565.8,2565.5,3.0]
[1723419588492,14.4160977,2565.8,2565.5,6.11823]
[1723419589691,14.4160977,2565.8,2565.6,3.1181]
[1723419589928,14.4160977,2565.8,2565.7,0.55]
[1723419590793,14.4160977,2565.8,2565.7,3.66805]
[1723419591191,14.4160977,2565.8,2565.6,3.1181]
[1723419591394,14.4160977,2565.8,2565.5,3.0]
[1723419591945,14.4160977,2565.8,2565.5,6.11828]
[1723419592109,14.4160977,2565.8,2565.5,6.78355179]
[1723419592634,14.4160977,2565.8,2565.6,3.11815]
[1723419593399,14.4160977,2565.8,2565.6,3.11811]
[1723419594593,14.30028,2565.7,2565.6,3.11811]
[1723419594840,14.30028,2565.7,2565.6,3.66811]
[1723419595144,14.41188948,2565.7,2565.6,3.66811]
[1723419596805,14.41188948,2565.7,2565.6,7.83144618]
[1723419597221,14.41188948,2565.7,2565.6,10.16454618]
[1723419598155,14.41188948,2565.7,2565.6,11.36054618]
[1723419599052,14.30028,2566.2,2565.6,5.12426618]
[1723419599236,14.30028,2566.2,2566.1,1.196]
[1723419602258,14.30028,2566.2,2565.9,4.31381]
[1723419602431,14.30028,2566.2,2566.0,0.55]
[1723419603653,14.30028,2566.1,2565.9,1.196]
[1723419603958,15.730308,2566.1,2565.9,1.196]
[1723419604166,14.30028,2566.1,2565.9,1.196]
[1723419604345,2.3875,2566.0,2565.9,1.196]
[1723419605033,2.3875,2566.0,2565.5,6.11822]
[1723419605244,3.11783,2565.9,2565.6,1.196]
[1723419605535,0.862313,2565.8,2565.6,1.196]
[1723419607832,0.862313,2565.8,2565.4,6.23676]
[1723419608038,5.50526,2566.0,2565.4,6.23676]
[1723419608238,2.3875,2566.0,2565.4,3.11835]
[1723419608529,2.3875,2566.0,2565.6,3.11816]
[1723419609660,14.30028,2565.9,2565.6,3.11816]
[1723419609963,14.30028,2565.9,2565.7,0.55]
[1723419611259,14.30028,2565.9,2565.8,3.11793]
[1723419611561,14.30028,2565.9,2565.8,3.66793]
[1723419611562,14.41191011,2565.9,2565.8,3.66793]
[1723419611968,14.41191011,2565.9,2565.8,9.17166]
[1723419612276,14.41191011,2565.9,2565.8,10.088826]
[1723419614448,14.41191011,2565.9,2565.8,9.17166]
[1723419614649,14.41191011,2565.9,2565.8,6.05373]
[1723419615462,14.41191011,2565.9,2565.8,3.66793]
[1723419615630,14.41191011,2565.9,2565.1,3.39]
[1723419615832,16.75088,2565.8,2565.4,3.1183]
[1723419616031,16.75088,2565.8,2565.5,3.0]
[1723419616236,0.11156168,2565.7,2565.5,3.0]
[1723419616437,16.75088,2565.8,2565.5,3.0]
[1723419616667,0.11153867,2565.6,2565.5,3.0]
[1723419616867,16.75088,2565.8,2565.5,3.0]
[1723419617047,0.11153867,2565.6,2565.5,3.0]
[1723419617250,16.75088,2565.8,2565.5,3.0]
[1723419617572,0.11153867,2565.6,2565.5,3.0]
[1723419617793,16.75088,2565.8,2565.5,3.0]
[1723419617942,0.11153867,2565.6,2565.5,3.0]
[1723419618283,14.30028,2565.8,2565.7,3.11805]
[1723419618578,14.30028,2565.8,2565.7,3.66805]
[1723419620145,14.30028,2565.8,2565.7,0.55]
[1723419623381,14.30028,2565.8,2565.7,6.7861]
[1723419623577,14.30028,2565.8,2565.7,13.22906]
[1723419623782,14.30028,2565.8,2565.7,16.22906]
[1723419623990,14.30028,2565.8,2565.7,18.21160298]
[1723419625376,14.30028,2565.8,2565.7,18.21151892]
[1723419626182,8.14550956,2567.2,2565.7,18.21151892]
[1723419626183,14.30028,2566.6,2566.4,3.11713]
[1723419626486,14.30028,2566.5,2566.2,3.11734]
[1723419626689,14.30028,2566.5,2566.3,3.66728]
[1723419626690,14.40858448,2566.5,2566.3,3.66728]
[1723419627073,14.40858448,2566.5,2566.4,3.1172]
[1723419627289,14.40858448,2566.5,2566.4,3.6672]
[1723419628191,14.40858448,2566.5,2566.4,6.7844]
[1723419628697,14.40858448,2566.5,2566.4,3.6672]
[1723419628869,14.40858448,2566.5,2566.4,6.7844]
[1723419629069,14.40858448,2566.5,2566.4,7.47063253]
[1723419629271,14.40858448,2566.5,2566.4,10.34063253]
[1723419629597,14.40858448,2566.5,2566.4,13.34063253]
[1723419630563,14.30028,2566.5,2566.4,13.34063253]
[1723419630794,14.40875976,2566.5,2566.4,13.34063253]
[1723419630995,14.40875976,2566.5,2566.4,12.6544]
[1723419631200,14.40875976,2566.5,2566.4,9.5372]
[1723419631398,14.40875976,2566.5,2566.4,0.55]
[1723419631602,14.40875976,2566.5,2566.1,5.98746]
[1723419631900,14.48494703,2566.5,2566.2,3.0]
[1723419632106,14.48494703,2566.5,2566.3,3.11732]
[1723419634614,14.48494703,2566.5,2566.3,3.11726]
[1723419635286,14.48494703,2566.5,2565.8,4.69115189]
[1723419635491,14.48494703,2566.5,2565.9,3.11772]
[1723419635492,2.3511,2566.3,2565.9,3.11772]
[1723419635803,14.30028,2566.4,2566.1,3.11749]
[1723419635804,0.18465746,2566.2,2566.1,3.11749]
[1723419636125,14.30028,2566.4,2566.2,3.11741]
[1723419636476,14.30028,2566.4,2566.0,6.23525]
[1723419636705,14.30028,2566.4,2566.0,6.2352]
[1723419636905,14.30028,2566.4,2566.1,0.55]
[1723419637217,1.665138,2566.3,2566.1,0.55]
[1723419638008,1.665138,2566.3,2565.8,9.1057]
[1723419638214,2.3511,2566.2,2565.9,0.55]
[1723419638399,4.4944718,2566.2,2565.9,0.55]
[1723419638785,4.4944718,2566.2,2565.6,6.23618]
[1723419638786,14.30028,2566.1,2565.6,6.23618]
[1723419639195,14.30028,2566.1,2565.7,3.11804]
[1723419640537,14.30028,2566.1,2565.6,3.11808]
[1723419640679,14.30028,2566.1,2565.7,0.55]
[1723419641316,14.30028,2566.1,2565.8,3.11783]
[1723419641711,0.1840449,2566.0,2565.9,6.23562]
[1723419642017,0.1840449,2566.0,2565.9,6.78562]
[1723419642229,14.4843249,2566.0,2565.9,6.78562]
[1723419643091,14.4843249,2566.0,2565.9,3.66781]
[1723419643282,14.4843249,2566.0,2565.7,2.3233]
[1723419643283,14.4843249,2566.0,2565.5,5.87]
[1723419643485,16.7907249,2566.0,2565.6,3.6681]
[1723419643715,16.7907249,2566.0,2565.7,6.11795]
[1723419643919,14.4843249,2566.0,2565.8,3.11786]
[1723419645487,14.4843249,2566.0,2565.9,3.11781]
[1723419645692,14.4843249,2566.0,2565.7,9.23601]
[1723419646295,14.4843249,2566.0,2565.8,3.11783]
[1723419646515,14.4843249,2566.0,2565.9,3.11781]
[1723419647320,14.4843249,2566.0,2565.9,7.709193]
[1723419647525,14.4843249,2566.0,2565.9,6.78562]
[1723419647700,14.4843249,2566.0,2565.9,3.66781]
[1723419648888,14.4843249,2566.0,2565.9,0.55]
[1723419649485,14.4843249,2566.0,2565.9,3.66781]
[1723419649685,14.4843249,2566.0,2565.7,3.0]
[1723419649992,14.4843249,2566.0,2565.9,3.11781]
[1723419650190,14.4843249,2566.0,2565.9,3.66781]
[1723419650416,14.4843249,2566.0,2565.9,6.78562]
[1723419650617,14.4843249,2566.0,2565.9,7.764182]
[1723419651317,14.4843249,2566.0,2565.9,3.66781]
[1723419651805,14.4843249,2566.0,2565.9,6.78562]
[1723419654733,14.4843249,2566.0,2565.9,3.66781]
[1723419656104,14.4843249,2566.0,2565.9,4.86381]
[1723419661060,14.4843249,2566.0,2565.9,1.746]
[1723419661228,3.11786,2565.9,2565.7,1.196]
[1723419661430,14.48441065,2565.8,2565.6,1.196]
[1723419661843,2.4081,2565.7,2565.6,1.196]
[1723419662048,2.59228149,2565.7,2565.6,1.196]
[1723419662250,18.89361164,2565.7,2565.1,0.3903]
[1723419662454,2.4081,2565.5,2565.3,0.3903]
[1723419662775,1.670838,2565.4,2565.0,1.196]
[1723419663006,1.85501613,2565.4,2565.0,1.196]
[1723419663185,1.85501613,2565.4,2565.2,1.196]
[1723419663362,2.4081,2565.2,2565.0,1.196]
[1723419663561,2.4081,2565.2,2564.7,3.11919]
[1723419663774,2.4081,2565.2,2565.0,1.196]
[1723419663775,0.18379521,2565.1,2565.0,1.196]
[1723419664074,0.18379521,2565.1,2563.9,3.12016]
[1723419664075,3.11947,2564.6,2563.9,3.12016]
[1723419664397,5.52731,2564.8,2563.7,3.12043]
[1723419664398,5.52782,2564.4,2563.7,3.12043]
[1723419664698,3.11998,2564.2,2563.5,3.12067]
[1723419664873,3.69112233,2564.2,2563.6,1.98417148]
[1723419665076,0.18312254,2564.1,2563.7,3.12045]
[1723419665265,0.18312254,2564.1,2563.5,3.12063]
[1723419665702,0.88253503,2564.1,2563.5,6.24127]
[1723419665858,0.88253503,2564.1,2563.5,3.12063]
[1723419666064,0.88253503,2564.1,2563.8,3.12035]
[1723419666261,0.18312254,2564.1,2563.8,3.12035]
[1723419666888,0.18312254,2564.1,2564.0,6.24024]
[1723419667088,0.18312254,2564.1,2564.0,6.79024]
[1723419667326,14.30028,2564.5,2564.2,3.11978]
[1723419667927,14.30028,2564.5,2564.4,3.11963]
[1723419668304,14.30028,2564.5,2564.3,0.55]
[1723419669148,2.4723,2564.7,2564.3,0.55]
[1723419669455,0.559152,2564.6,2564.0,3.12006]
[1723419669636,3.678622,2564.6,2564.0,3.12006]
[1723419670156,5.46921,2564.5,2564.0,3.12006]
[1723419670511,2.3497,2564.5,2564.0,3.12005]
[1723419670736,14.30028,2564.8,2564.2,3.11986]
[1723419670950,14.30028,2564.8,2564.4,3.11951]
[1723419671446,14.30028,2564.8,2564.4,3.11955]
[1723419671649,14.48280051,2564.7,2564.6,3.11938]
[1723419672215,14.48280051,2564.7,2564.4,3.11955]
[1723419672717,14.48280051,2564.7,2564.5,3.11948]
[1723419673155,14.48280051,2564.7,2564.6,3.11939]
[1723419674055,14.48280051,2564.7,2564.4,6.23908]
[1723419674254,14.48280051,2564.7,2564.5,3.11949]
[1723419674952,14.30028,2564.6,2564.4,3.11953]
[1723419675249,0.18253799,2564.5,2564.4,3.11953]
[1723419675452,0.18253799,2564.5,2564.2,3.11985]
[1723419675624,4.08021979,2564.5,2563.8,5.465]
[1723419675829,14.30028,2564.4,2564.0,3.12005]
[1723419676028,0.18250262,2564.3,2564.1,0.55]
[1723419677160,0.18250262,2564.3,2563.9,3.12014]
[1723419677161,14.30028,2564.2,2563.9,3.12014]
[1723419677521,0.18245812,2564.1,2563.8,6.12027]
[1723419677715,0.18245812,2564.1,2563.8,3.0]
[1723419678062,2.46095812,2564.1,2563.8,3.0]
[1723419678264,4.44907193,2564.1,2563.7,3.0]
[1723419678418,4.44907193,2564.1,2563.6,3.12052]
[1723419678616,17.42047,2564.0,2563.4,3.12078]
[1723419678824,1.22684189,2563.9,2563.4,3.12078]
[1723419679069,14.30028,2563.8,2563.4,3.12074]
[1723419679440,0.18210716,2563.7,2563.4,3.12074]
[1723419679648,14.30028,2563.8,2563.4,6.24148]
[1723419679846,0.18210716,2563.7,2563.4,6.24148]
[1723419680151,14.30028,2563.8,2563.5,3.55]
[1723419680375,0.18206523,2563.6,2563.5,3.55]
[1723419680871,14.30028,2563.8,2563.5,3.55]
[1723419681075,0.18206523,2563.6,2563.5,3.55]
[1723419681261,14.30028,2563.8,2563.5,3.55]
[1723419681445,0.18206523,2563.6,2563.5,3.0]
[1723419681646,0.18206523,2563.6,2563.3,6.12089]
[1723419681849,0.18206523,2563.6,2563.4,3.12084]
[1723419682149,14.30028,2563.8,2563.5,3.0]
[1723419682345,16.14677849,2563.8,2563.5,3.0]
[1723419682749,19.26716849,2563.8,2563.3,3.0]
[1723419683707,16.76968,2563.7,2563.0,3.12126]
[1723419683885,18.35957712,2563.7,2563.2,3.12107]
[1723419684185,21.48014712,2563.7,2563.0,3.12123]
[1723419684372,1.04451493,2563.6,2563.0,3.12123]
[1723419684688,1.04451493,2563.6,2563.3,3.12095]
[1723419684909,14.30028,2563.7,2562.9,6.19942538]
[1723419685068,14.30028,2563.7,2563.6,3.12061]
[1723419685690,14.30028,2563.7,2563.6,6.79122]
[1723419685899,14.30028,2563.7,2563.6,3.67061]
[1723419686711,14.47598376,2563.7,2563.6,3.67061]
[1723419686898,14.47598376,2563.7,2563.6,7.158281]
[1723419687101,14.47598376,2563.7,2563.6,10.158281]
[1723419688805,14.30028,2563.7,2563.6,10.158281]
[1723419689181,14.47621716,2563.7,2563.6,6.67061]
[1723419690307,14.47621716,2563.7,2563.6,9.79122]
[1723419690507,0.17593716,2563.7,2563.6,12.91183]
[1723419690713,0.17593716,2563.7,2563.6,15.16343]
[1723419691019,14.30028,2564.2,2564.1,6.24]
[1723419691410,14.30028,2564.2,2564.1,3.12]
[1723419691819,14.30028,2564.2,2563.9,3.12015]
[1723419692110,14.30028,2564.2,2563.7,3.12041]
[1723419692111,2.4989,2564.1,2563.7,3.12041]
[1723419692420,2.4989,2564.1,2563.8,3.0]
[1723419692634,4.490794,2564.1,2563.7,3.12037]
[1723419692799,4.490794,2564.1,2563.7,6.24079]
[1723419693001,2.4989,2564.1,2563.9,3.12024]
[1723419693199,14.30028,2564.2,2564.1,3.12]
[1723419693715,14.30028,2564.2,2564.0,3.1201]
[1723419694032,14.30028,2564.2,2563.8,3.12027]
[1723419694195,15.980198,2564.2,2563.9,0.55]
[1723419694599,15.980198,2564.2,2563.9,3.67023]
[1723419695232,2.3377,2564.1,2563.7,3.12041]
[1723419695438,3.9357198,2564.1,2563.7,3.12041]
[1723419695588,2.3377,2564.1,2563.7,3.12041]
[1723419695793,14.30028,2564.0,2563.8,3.12034]
[1723419696436,14.30028,2564.0,2563.9,3.12024]
[1723419697116,14.30028,2564.0,2563.9,6.24048]
[1723419697290,14.30028,2564.0,2563.9,6.79048]
[1723419697490,14.30028,2564.0,2563.9,7.469528]
[1723419697726,3.11934,2564.7,2564.0,3.12007]
[1723419697727,14.30028,2564.3,2564.0,3.12007]
[1723419697920,14.30028,2564.3,2564.2,3.11988]
[1723419698721,14.30028,2564.3,2564.1,3.11998]
[1723419699342,14.30028,2564.3,2563.9,0.55]
[1723419699527,16.63558,2564.3,2564.1,3.11992]
[1723419699727,14.30028,2564.3,2564.1,3.11992]
[1723419700164,14.30028,2564.3,2564.2,3.11988]
[1723419700571,14.30028,2564.3,2564.2,6.23976]
[1723419700869,14.30028,2564.3,2564.2,3.11988]
[1723419701176,14.30028,2564.3,2564.2,6.87153808]
[1723419701374,14.30028,2564.3,2564.2,3.66988]
[1723419701729,14.47643071,2564.3,2564.2,0.55]
[1723419701975,16.81173071,2564.3,2563.9,3.12016]
[1723419702269,18.25937378,2564.3,2563.9,3.11875561]
[1723419702480,18.25937378,2564.3,2564.0,3.12005]
[1723419702834,14.47643071,2564.3,2564.1,3.11993]
[1723419703290,14.47643071,2564.3,2563.9,3.12018]
[1723419703450,2.3353,2564.2,2563.9,3.12018]
[1723419703630,0.17617937,2564.1,2563.9,6.24036]
[1723419703825,0.17617937,2564.1,2564.0,3.12012]
[1723419704066,14.30028,2564.3,2564.1,3.11997]
[1723419704269,0.17618844,2564.2,2564.1,3.11997]
[1723419704435,14.30028,2564.3,2564.1,3.11997]
[1723419704775,0.17616884,2564.2,2564.1,3.11997]
[1723419704975,0.17616884,2564.2,2564.1,6.78997]
[1723419705132,14.30028,2564.3,2564.2,3.11988]
[1723419705332,14.30028,2564.3,2564.2,6.78976]
[1723419705593,14.30028,2564.3,2564.2,7.523736]
[1723419706066,14.30028,2564.3,2564.2,12.866636]
[1723419706676,14.30028,2564.5,2564.4,6.23926]
[1723419706894,14.30028,2564.5,2564.4,6.86724305]
[1723419707274,14.30028,2564.5,2564.4,6.78926]
[1723419709709,14.30028,2564.5,2564.4,3.66963]
[1723419711306,14.30028,2564.5,2564.4,0.55]
[1723419712094,16.72178,2564.5,2564.3,3.11968]
[1723419713620,14.30028,2564.4,2564.3,3.11968]
[1723419713955,14.30028,2564.4,2564.3,6.66968]
[1723419715627,14.30028,2564.4,2564.3,3.55]
[1723419715831,14.30028,2564.4,2564.3,0.55]
[1723419716146,14.30028,2564.4,2564.3,3.66975]
[1723419716550,14.30028,2564.4,2564.3,6.7895]
[1723419716719,14.47668517,2564.4,2564.3,3.66975]
[1723419717789,14.47668517,2564.4,2564.3,7.468452]
[1723419718130,14.47668517,2564.4,2564.3,9.802552]
[1723419718334,14.47668517,2564.4,2564.3,15.674552]
[1723419719074,14.47668517,2564.4,2564.3,13.340452]
[1723419719234,14.47668517,2564.4,2564.3,6.66975]
[1723419720618,14.47668517,2564.4,2564.3,0.55]
[1723419721273,14.47668517,2564.4,2564.0,3.12005]
[1723419721433,14.47668517,2564.4,2563.8,2.4998]
[1723419721434,2.4429,2564.3,2563.8,3.12026]
[1723419721641,1.86318636,2564.2,2563.9,3.12023]
[1723419722548,1.86318636,2564.2,2563.7,9.11289]
[1723419722751,1.86318636,2564.2,2563.8,6.12032]
[1723419723369,0.74258664,2564.1,2563.8,3.0]
[1723419723539,14.30028,2564.0,2563.8,3.0]
[1723419723736,14.47134113,2564.0,2563.8,3.0]
[1723419724138,14.47134113,2564.0,2563.8,6.12029]
[1723419724539,14.47134113,2564.0,2563.8,3.0]
[1723419724764,14.47134113,2564.0,2563.8,6.12035]
[1723419725478,14.47134113,2564.0,2563.8,3.0]
[1723419725779,16.16192976,2564.0,2563.8,3.0]
[1723419725946,16.16192976,2564.0,2563.7,3.12036]
[1723419726279,16.16192976,2564.0,2563.8,3.0]
[1723419727037,16.16192976,2564.0,2563.4,2.872]
[1723419727038,2.3514,2563.9,2563.6,3.1206]
[1723419727273,2.02206626,2563.8,2563.6,3.1206]
[1723419727475,0.17073328,2563.8,2563.6,3.1206]
[1723419728337,0.17073328,2563.8,2563.6,6.2412]
[1723419728536,14.30028,2563.7,2563.4,3.12077]
[1723419728775,14.30028,2563.6,2563.5,6.12073]
[1723419728976,14.4709658,2563.6,2563.5,6.12073]
[1723419730957,14.4709658,2563.6,2563.5,9.24146]
[1723419733081,14.4709658,2563.6,2563.5,13.176606]
[1723419733388,14.4709658,2563.6,2563.5,10.715606]
[1723419734780,14.4709658,2563.6,2563.5,16.297336]
[1723419734965,14.4709658,2563.6,2563.5,16.70407105]
[1723419735752,14.4709658,2563.6,2563.5,13.58334105]
[1723419736773,14.4709658,2563.6,2563.5,10.19819505]
[1723419737091,14.4709658,2563.6,2563.5,15.72212505]
[1723419737293,14.4709658,2563.6,2563.5,12.60139505]
[1723419740564,14.30028,2563.6,2563.5,12.60139505]
[1723419740782,14.47088665,2563.6,2563.5,12.60139505]